bitfinex-derivatives/quotes_SOLF0:USTF0_20250424
["timestamp","ask_amount","ask_price","bid_price","bid_amount"]
[1745486451276,6.81,146.83,146.79,35.8913]
[1745486453075,6.74050768,146.84,146.79,35.8913]
[1745486453276,6.8103,146.82,146.79,29.08]
[1745486453885,11.7985,146.86,146.79,29.08]
[1745486454085,6.74050768,146.86,146.8,6.74050768]
[1745486454583,6.809,146.85,146.81,6.8104]
[1745486455487,6.809,146.85,146.82,6.8101]
[1745486455886,6.809,146.85,146.8,6.74050768]
[1745486456086,6.809,146.85,146.81,6.8103]
[1745486456285,6.74050768,146.84,146.8,6.74050768]
[1745486457083,13.55010768,146.84,146.8,13.55130768]
[1745486457988,13.55010768,146.84,146.81,6.8106]
[1745486459490,6.8086,146.86,146.82,6.8098]
[1745486459688,13.54910768,146.86,146.8,6.74050768]
[1745486459989,6.74050768,146.86,146.8,6.74050768]
[1745486460183,6.809,146.85,146.82,6.8099]
[1745486461091,6.809,146.85,146.81,6.8104]
[1745486461285,13.55000768,146.84,146.8,6.74050768]
[1745486461587,13.55000768,146.84,146.8,13.55120768]
[1745486462084,13.55000768,146.84,146.8,6.74050768]
[1745486462292,6.74050768,146.84,146.79,35.82050768]
[1745486462483,6.74050768,146.8,146.79,29.08]
[1745486462681,6.74050768,146.8,146.76,29.02]
[1745486462882,13.55290768,146.78,146.76,29.02]
[1745486463083,6.74050768,146.77,146.73,61.16158746]
[1745486463589,6.74050768,146.76,146.73,61.16158746]
[1745486463786,6.74050768,146.75,146.73,61.16158746]
[1745486463984,13.55430768,146.75,146.73,61.16158746]
[1745486464592,6.8131,146.76,146.73,61.16158746]
[1745486464891,13.55360768,146.76,146.73,61.16158746]
[1745486465294,6.8131,146.76,146.73,61.16158746]
[1745486465497,10.56410203,146.79,146.73,61.16158746]
[1745486466091,6.8136,146.75,146.73,61.16158746]
[1745486466293,10.56410203,146.77,146.73,61.16158746]
[1745486466491,6.8138,146.75,146.71,6.815]
[1745486467693,7.9038,146.78,146.7,29.04]
[1745486467896,39.58410203,146.81,146.71,10.56410203]
[1745486468089,10.56410203,146.79,146.71,10.56410203]
[1745486468396,6.8128,146.77,146.73,6.8141]
[1745486468590,6.8128,146.77,146.71,10.56410203]
[1745486468991,6.8128,146.77,146.74,6.8139]
[1745486469595,6.8128,146.77,146.73,6.8141]
[1745486470595,10.56410203,146.79,146.7,29.04]
[1745486470996,6.8137,146.75,146.7,29.04]
[1745486471196,6.8137,146.75,146.71,6.815]
[1745486471400,10.56410203,146.79,146.7,29.04]
[1745486471793,29.02,146.81,146.71,10.56410203]
[1745486472092,6.8114,146.8,146.73,10.56410203]
[1745486472300,18.71130203,146.82,146.77,6.8124]
[1745486472598,6.8109,146.81,146.77,6.8124]
[1745486472895,18.71130203,146.82,146.74,29.04]
[1745486473193,8.1472,146.82,146.74,29.04]
[1745486473498,6.8108,146.81,146.77,6.8122]
[1745486473698,8.1472,146.82,146.74,39.60410203]
[1745486474499,6.811,146.81,146.77,6.8125]
[1745486475499,6.811,146.81,146.78,6.8119]
[1745486475993,6.8112,146.8,146.76,6.8126]
[1745486476701,6.8109,146.81,146.77,6.8124]
[1745486477901,10.56410203,146.81,146.74,29.04]
[1745486478499,6.8119,146.79,146.75,6.8133]
[1745486479201,6.8113,146.8,146.74,29.04]
[1745486479700,6.8113,146.8,146.76,6.8127]
[1745486481200,6.8113,146.8,146.77,6.8122]
[1745486481397,8.1472,146.82,146.75,10.56410203]
[1745486481701,8.1472,146.82,146.78,6.8118]
[1745486481898,6.8107,146.81,146.78,6.8118]
[1745486482496,3.9556,146.83,146.75,10.56410203]
[1745486482702,39.60410203,146.87,146.77,10.56410203]
[1745486482901,39.60410203,146.87,146.78,29.04]
[1745486483201,6.81,146.83,146.8,6.8109]
[1745486484003,6.81,146.83,146.81,6.8106]
[1745486484197,6.8094,146.84,146.81,6.8106]
[1745486484501,39.60410203,146.87,146.81,6.8106]
[1745486485302,6.7535517,146.85,146.81,6.8106]
[1745486485705,29.04,146.87,146.8,6.7535517]
[1745486485906,6.7535517,146.86,146.8,6.7535517]
[1745486486401,6.8095,146.84,146.82,6.8099]
[1745486486802,6.7535517,146.83,146.78,35.7935517]
[1745486487404,6.7535517,146.82,146.78,35.8519]
[1745486487904,6.8116,146.79,146.78,29.04]
[1745486489505,10.55781554,146.83,146.78,29.04]
[1745486489799,10.55781554,146.83,146.78,35.852]
[1745486490206,10.55781554,146.85,146.78,29.04]
[1745486490506,10.55781554,146.85,146.79,6.8113]
[1745486490804,6.8105,146.82,146.79,6.8113]
[1745486491005,10.55781554,146.85,146.78,35.8518]
[1745486491508,6.811,146.81,146.78,35.8518]
[1745486492906,6.8112,146.8,146.78,35.8518]
[1745486493204,6.8112,146.8,146.78,29.04]
[1745486493606,6.8116,146.79,146.78,29.04]
[1745486493808,10.55781554,146.81,146.75,29.0]
[1745486494009,10.55781554,146.79,146.72,572.4256]
[1745486494506,10.55781554,146.81,146.72,572.4256]
[1745486494805,6.8128,146.77,146.74,6.8136]
[1745486495106,6.8128,146.77,146.72,572.4256]
[1745486495408,6.8128,146.77,146.72,582.98341554]
[1745486496603,6.8128,146.77,146.74,6.8136]
[1745486496804,6.8131,146.76,146.74,6.8136]
[1745486497007,10.55781554,146.79,146.72,575.1946]
[1745486497202,6.8137,146.75,146.72,568.38]
[1745486497909,6.8142,146.74,146.72,568.38]
[1745486498709,6.8144,146.73,146.72,29.0]
[1745486498908,10.55781554,146.77,146.69,29.0]
[1745486499110,10.55781554,146.77,146.69,35.816]
[1745486499311,10.55781554,146.75,146.69,35.816]
[1745486500311,10.55781554,146.75,146.7,6.8157]
[1745486500613,6.8145,146.73,146.7,6.8157]
[1745486501111,3.0116,146.76,146.71,6.8153]
[1745486501311,10.55781554,146.77,146.71,6.8153]
[1745486501814,10.55781554,146.77,146.69,29.0]
[1745486502613,6.8137,146.75,146.72,6.8146]
[1745486503508,6.814,146.74,146.72,6.8146]
[1745486503718,10.55781554,146.77,146.69,29.0]
[1745486504716,6.8144,146.73,146.71,6.8153]
[1745486505010,10.55781554,146.77,146.69,29.0]
[1745486505315,6.8137,146.75,146.69,29.0]
[1745486506016,6.8137,146.75,146.72,6.8144]
[1745486506820,39.55781554,146.79,146.69,29.0]
[1745486507116,6.8134,146.76,146.72,6.8148]
[1745486508017,6.8135,146.75,146.72,6.8148]
[1745486508615,6.8131,146.76,146.73,6.8143]
[1745486509216,6.8126,146.77,146.74,6.8137]
[1745486509417,29.0,146.79,146.72,10.55781554]
[1745486509616,13.70481554,146.81,146.73,29.02]
[1745486509818,6.8118,146.79,146.76,6.8127]
[1745486510114,6.299,146.82,146.73,29.02]
[1745486510312,6.299,146.82,146.73,31.4185]
[1745486510519,6.8114,146.8,146.73,31.4185]
[1745486511125,6.8114,146.8,146.77,6.8125]
[1745486511319,6.8116,146.79,146.74,10.55781554]
[1745486511520,6.8116,146.79,146.76,6.8126]
[1745486511815,6.299,146.82,146.74,10.55781554]
[1745486512019,13.00681554,146.85,146.79,6.8112]
[1745486512219,13.00681554,146.85,146.77,29.02]
[1745486512520,6.81,146.83,146.8,6.8107]
[1745486512719,39.57781554,146.87,146.78,10.55781554]
[1745486513019,6.809,146.85,146.78,10.55781554]
[1745486513212,6.809,146.85,146.78,13.09501554]
[1745486514221,6.809,146.85,146.81,6.8103]
[1745486514526,6.8084,146.86,146.8,10.55781554]
[1745486514720,6.8084,146.86,146.81,29.0]
[1745486514921,6.8084,146.86,146.82,6.8099]
[1745486516526,6.809,146.85,146.82,6.8099]
[1745486517422,6.8097,146.84,146.81,35.8105]
[1745486517815,6.8097,146.84,146.81,29.0]
[1745486518321,6.8098,146.83,146.81,29.0]
[1745486518523,6.8098,146.83,146.78,31.5372]
[1745486519023,6.8098,146.83,146.8,6.8109]
[1745486519426,6.8105,146.82,146.79,6.8114]
[1745486519620,6.8105,146.82,146.78,29.0]
[1745486520320,6.8099,146.83,146.79,6.8113]
[1745486520625,36.5783,146.89,146.8,10.55781554]
[1745486521219,6.8085,146.86,146.83,6.8095]
[1745486521419,36.5783,146.89,146.83,6.8095]
[1745486521825,6.8082,146.87,146.83,6.8095]
[1745486522219,36.5783,146.89,146.83,6.8095]
[1745486522523,36.5783,146.89,146.82,6.81]
[1745486522920,10.55781554,146.88,146.8,10.55781554]
[1745486523124,10.55781554,146.88,146.79,4.8863]
[1745486523524,10.55781554,146.88,146.82,6.8099]
[1745486524526,6.8091,146.85,146.82,6.8099]
[1745486524822,10.55781554,146.86,146.78,29.0]
[1745486525227,6.8104,146.82,146.79,6.8113]
[1745486525826,6.8104,146.82,146.78,35.8119]
[1745486526026,6.8104,146.82,146.78,29.0]
[1745486526331,6.81,146.83,146.78,29.0]
[1745486526925,10.55781554,146.88,146.81,6.8103]
[1745486527126,10.55781554,146.88,146.78,39.55781554]
[1745486527127,36.5783,146.89,146.8,10.55781554]
[1745486527325,6.8086,146.86,146.8,10.55781554]
[1745486527525,6.8086,146.86,146.82,6.81]
[1745486527725,18.13611554,146.89,146.8,10.55781554]
[1745486528021,6.8089,146.85,146.81,6.8102]
[1745486528428,6.8086,146.86,146.8,10.55781554]
[1745486528622,6.8086,146.86,146.83,6.8097]
[1745486530227,6.8089,146.85,146.82,6.81]
[1745486530527,6.8089,146.85,146.8,10.55781554]
[1745486531728,6.8089,146.85,146.81,6.8104]
[1745486532030,6.8089,146.85,146.8,10.55781554]
[1745486532226,6.8089,146.85,146.82,6.8101]
[1745486532522,6.8086,146.86,146.8,10.55781554]
[1745486532729,18.13611554,146.89,146.8,10.55781554]
[1745486532923,6.8082,146.87,146.83,6.8093]
[1745486533125,18.13611554,146.89,146.82,28.96]
[1745486533529,6.8086,146.86,146.82,35.7699]
[1745486534326,6.8086,146.86,146.83,6.8096]
[1745486534721,6.8081,146.87,146.82,28.96]
[1745486535024,7.5783,146.89,146.82,28.96]
[1745486535230,6.8086,146.86,146.82,28.96]
[1745486535532,6.8086,146.86,146.83,6.8095]
[1745486536027,6.8089,146.85,146.82,28.96]
[1745486536229,6.8089,146.85,146.82,35.77]
[1745486536533,6.8085,146.86,146.82,28.96]
[1745486536730,6.8085,146.86,146.83,6.8094]
[1745486537025,10.55781554,146.88,146.82,28.96]
[1745486537230,6.8081,146.87,146.84,6.8092]
[1745486538425,6.8081,146.87,146.85,6.8087]
[1745486538633,39.51781554,146.9,146.82,39.51781554]
[1745486539032,28.96,146.9,146.86,6.8081]
[1745486539233,6.8074,146.89,146.86,6.8081]
[1745486539431,10.55781554,146.92,146.86,6.8081]
[1745486539931,6.8075,146.88,146.86,6.8081]
[1745486540935,10.55781554,146.9,146.82,42.07301554]
[1745486541131,10.55781554,146.9,146.82,31.5152]
[1745486541333,10.55781554,146.9,146.83,6.8093]
[1745486541733,10.55781554,146.9,146.82,28.96]
[1745486542029,6.8086,146.86,146.82,28.96]
[1745486542734,6.8086,146.86,146.83,6.8094]
[1745486545336,10.55781554,146.9,146.82,28.96]
[1745486545640,10.55781554,146.92,146.84,10.55781554]
[1745486545841,6.8069,146.9,146.86,6.8082]
[1745486546038,10.55781554,146.92,146.86,6.8082]
[1745486546538,6.807,146.89,146.86,6.8082]
[1745486547238,6.807,146.89,146.86,13.55667617]
[1745486547643,6.74847617,146.9,146.82,31.5773]
[1745486547644,6.8076,146.88,146.85,13.55707617]
[1745486548534,6.74847617,146.89,146.82,31.5773]
[1745486548839,6.74847617,146.87,146.82,28.96]
[1745486549239,6.8089,146.85,146.82,35.77]
[1745486549941,6.8086,146.86,146.83,6.8096]
[1745486550145,10.55039291,146.88,146.83,6.8096]
[1745486550339,10.55039291,146.88,146.82,28.96]
[1745486551242,10.55039291,146.88,146.82,35.77]
[1745486551243,6.8088,146.85,146.82,35.77]
[1745486552142,6.8086,146.86,146.83,6.8097]
[1745486552343,10.55039291,146.9,146.82,28.96]
[1745486552543,10.55039291,146.92,146.82,28.96]
[1745486552842,6.8083,146.87,146.84,6.809]
[1745486553546,6.8083,146.86,146.83,6.8095]
[1745486553846,6.8083,146.86,146.82,28.96]
[1745486554040,6.8083,146.86,146.83,6.8097]
[1745486560746,6.8083,146.86,146.82,35.7699]
[1745486560941,6.8083,146.86,146.82,28.96]
[1745486561147,5.145,146.89,146.82,28.96]
[1745486561448,10.55039291,146.87,146.79,28.92]
[1745486561747,10.55039291,146.85,146.79,28.92]
[1745486561947,10.55039291,146.87,146.81,6.8104]
[1745486562249,6.8098,146.83,146.81,6.8104]
[1745486562449,6.8098,146.83,146.8,6.8109]
[1745486562949,6.8098,146.83,146.79,28.92]
[1745486563359,6.8095,146.84,146.79,28.92]
[1745486564348,6.8095,146.84,146.81,6.8104]
[1745486564647,10.55039291,146.87,146.79,28.92]
[1745486564851,2.4497,146.88,146.79,28.92]
[1745486565348,6.8084,146.86,146.83,6.8094]
[1745486566452,6.8084,146.86,146.84,6.8093]
[1745486566649,6.8084,146.86,146.79,28.92]
[1745486566851,6.8089,146.85,146.79,28.92]
[1745486567047,6.8089,146.85,146.82,6.8098]
[1745486567654,10.55039291,146.87,146.79,28.92]
[1745486568150,6.8095,146.84,146.81,6.8104]
[1745486568449,6.8095,146.84,146.79,28.92]
[1745486569151,6.8095,146.84,146.8,6.8109]
[1745486569352,13.56342217,146.84,146.8,13.56482217]
[1745486569552,13.56342217,146.84,146.8,6.75392217]
[1745486569853,13.56342217,146.84,146.81,6.8104]
[1745486570551,6.809,146.85,146.82,6.8102]
[1745486570848,13.56292217,146.85,146.82,6.8102]
[1745486571050,6.75392217,146.85,146.8,6.75392217]
[1745486571352,6.8095,146.84,146.81,6.8105]
[1745486571651,6.75392217,146.85,146.8,6.75392217]
[1745486571952,6.8095,146.84,146.81,6.8106]
[1745486573149,6.8097,146.83,146.8,13.56482217]
[1745486573357,6.75392217,146.85,146.8,6.75392217]
[1745486573956,6.8095,146.84,146.81,6.8104]
[1745486574154,2.4497,146.88,146.8,6.75392217]
[1745486574356,6.75392217,146.87,146.82,6.75392217]
[1745486574654,6.8086,146.86,146.83,6.8097]
[1745486574954,6.75392217,146.87,146.82,6.75392217]
[1745486575256,13.56222217,146.87,146.83,6.8095]
[1745486575757,6.75392217,146.87,146.83,6.8095]
[1745486575951,2.4497,146.88,146.84,6.8092]
[1745486576155,6.75392217,146.87,146.84,6.8092]
[1745486576451,6.8083,146.86,146.82,6.75392217]
[1745486576658,6.8083,146.86,146.83,6.8094]
[1745486577556,28.92,146.92,146.85,6.75392217]
[1745486577753,6.75392217,146.9,146.85,6.75392217]
[1745486578153,6.75392217,146.87,146.83,28.92]
[1745486578559,13.56202217,146.87,146.84,6.8089]
[1745486580160,6.8083,146.86,146.84,6.8089]
[1745486581858,6.8083,146.86,146.83,42.48342217]
[1745486582157,13.56192217,146.87,146.83,35.67392217]
[1745486582357,6.75392217,146.89,146.83,35.67392217]
[1745486582759,13.56312217,146.85,146.83,28.92]
[1745486582957,6.75392217,146.85,146.81,6.8104]
[1745486583460,6.8095,146.84,146.81,6.8104]
[1745486584861,6.75392217,146.87,146.82,6.75392217]
[1745486585161,6.75392217,146.88,146.82,6.75392217]
[1745486586059,6.75392217,146.88,146.84,6.75392217]
[1745486586365,13.56182217,146.88,146.84,13.56292217]
[1745486586663,6.75392217,146.88,146.84,13.56292217]
[1745486587063,6.8081,146.87,146.84,13.56292217]
[1745486587463,6.75392217,146.88,146.83,35.6695]
[1745486587663,6.8086,146.86,146.83,35.6695]
[1745486588263,6.8088,146.85,146.83,28.86]
[1745486588458,28.92,146.92,146.83,28.86]
[1745486588459,6.75392217,146.86,146.83,28.86]
[1745486588963,6.8091,146.85,146.83,28.86]
[1745486590061,6.75392217,146.88,146.83,35.61392217]
[1745486590461,28.92,146.92,146.85,6.75392217]
[1745486590662,6.75392217,146.9,146.86,6.8081]
[1745486591361,6.8077,146.88,146.86,6.8081]
[1745486592064,6.8072,146.89,146.85,6.75392217]
[1745486592866,6.8072,146.89,146.86,6.808]
[1745486593063,28.86,146.96,146.87,6.75392217]
[1745486593271,6.75392217,146.95,146.83,28.86]
[1745486593463,6.8055,146.93,146.89,6.8065]
[1745486593966,6.75392217,146.95,146.89,6.75392217]
[1745486594566,6.75392217,146.95,146.91,6.75392217]
[1745486595367,13.55832217,146.95,146.92,6.8055]
[1745486595564,6.8044,146.95,146.91,6.75392217]
[1745486595866,6.75392217,146.97,146.93,6.75392217]
[1745486596167,6.8039,146.96,146.93,13.55882217]
[1745486596966,6.75392217,146.97,146.91,35.61392217]
[1745486597165,6.75392217,146.95,146.91,28.86]
[1745486597368,6.75392217,146.94,146.89,6.75392217]
[1745486597667,6.75392217,146.9,146.87,28.86]
[1745486597961,28.86,146.94,146.88,6.8073]
[1745486598167,6.75392217,146.93,146.88,6.75392217]
[1745486598462,6.806,146.91,146.88,6.75392217]
[1745486598669,13.55992217,146.91,146.88,6.8073]
[1745486599269,6.806,146.91,146.88,6.8073]
[1745486600272,6.8065,146.9,146.88,6.8073]
[1745486601875,6.8062,146.91,146.88,6.8073]
[1745486602574,6.8062,146.91,146.87,35.6677]
[1745486602879,6.8067,146.9,146.87,35.6677]
[1745486603572,6.8073,146.89,146.87,28.86]
[1745486603779,10.54347304,146.91,146.85,6.8084]
[1745486603970,10.54347304,146.89,146.84,28.86]
[1745486604278,6.8093,146.85,146.81,28.86]
[1745486604479,10.54347304,146.87,146.81,28.86]
[1745486604978,6.8093,146.84,146.81,35.6703]
[1745486605379,6.809,146.85,146.82,6.8101]
[1745486605584,10.54347304,146.87,146.82,6.8101]
[1745486605876,10.54347304,146.87,146.81,28.86]
[1745486606078,6.8086,146.86,146.83,6.8097]
[1745486606279,6.8086,146.86,146.81,28.86]
[1745486606678,6.8086,146.86,146.82,6.8098]
[1745486607876,39.40347304,146.9,146.81,28.86]
[1745486608081,10.54347304,146.91,146.83,10.54347304]
[1745486608374,28.86,146.93,146.83,10.54347304]
[1745486608581,28.86,146.93,146.86,6.808]
[1745486608780,28.86,146.93,146.85,39.40347304]
[1745486608981,6.8074,146.89,146.85,35.6686]
[1745486609383,28.86,146.93,146.85,35.6686]
[1745486609683,10.54347304,146.92,146.85,28.86]
[1745486609982,10.54347304,146.9,146.85,28.86]
[1745486610176,6.8082,146.87,146.85,28.86]
[1745486610480,10.54347304,146.9,146.85,28.86]
[1745486610879,6.8082,146.87,146.84,6.809]
[1745486611782,6.8084,146.86,146.84,6.809]
[1745486611980,6.8084,146.86,146.83,6.8095]
[1745486612789,6.809,146.85,146.82,35.6699]
[1745486615790,6.8093,146.84,146.82,35.6699]
[1745486616489,6.809,146.85,146.82,35.6699]
[1745486618089,6.8096,146.84,146.82,28.86]
[1745486619284,6.8085,146.86,146.83,6.8096]
[1745486619589,52.97527304,146.92,146.83,10.54347304]
[1745486620080,52.97527304,146.92,146.84,6.809]
[1745486620284,39.36347304,146.92,146.83,10.54347304]
[1745486620587,39.36347304,146.92,146.86,6.8083]
[1745486620987,6.8077,146.88,146.86,6.8083]
[1745486621588,6.8077,146.88,146.85,6.8086]
[1745486623291,6.8081,146.87,146.84,6.809]
[1745486623691,6.8081,146.87,146.85,6.8088]
[1745486624390,13.55856036,146.88,146.85,6.8088]
[1745486625788,6.75096036,146.88,146.86,6.8082]
[1745486625995,6.8072,146.89,146.86,6.8082]
[1745486626291,6.75096036,146.9,146.85,6.75096036]
[1745486626492,13.55786036,146.9,146.86,6.8081]
[1745486626792,6.75096036,146.9,146.86,6.8081]
[1745486627088,6.807,146.89,146.86,6.8081]
[1745486627391,6.75096036,146.9,146.86,6.8081]
[1745486627586,6.807,146.89,146.86,6.8081]
[1745486627793,6.75096036,146.9,146.86,6.8081]
[1745486628589,28.82,146.93,146.85,6.75096036]
[1745486628790,6.75096036,146.91,146.85,6.75096036]
[1745486628990,6.8068,146.9,146.85,6.75096036]
[1745486629296,2.5762,146.95,146.89,6.75096036]
[1745486629492,6.8054,146.93,146.91,6.75096036]
[1745486629692,6.75096036,146.94,146.89,13.55766036]
[1745486630093,6.75096036,146.94,146.9,6.8064]
[1745486630292,11.75006036,146.95,146.91,6.75096036]
[1745486630794,6.8047,146.94,146.91,6.75096036]
[1745486631292,6.8047,146.94,146.91,13.55666036]
[1745486633389,18.55446036,146.95,146.92,6.8055]
[1745486633598,13.55536036,146.95,146.92,6.8055]
[1745486633895,6.75096036,146.97,146.93,6.75096036]
[1745486634194,13.55456036,146.97,146.94,6.8046]
[1745486634795,6.803,146.98,146.93,6.75096036]
[1745486635297,6.8033,146.97,146.94,6.8043]
[1745486635796,6.8038,146.96,146.93,13.55586036]
[1745486636094,6.75096036,146.97,146.92,28.82]
[1745486636492,6.8039,146.96,146.93,13.55576036]
[1745486637497,6.8042,146.95,146.93,13.55576036]
[1745486637698,6.75096036,146.97,146.93,13.55576036]
[1745486638101,6.804,146.96,146.93,13.55576036]
[1745486638896,6.75096036,146.97,146.93,6.75096036]
[1745486639401,6.804,146.96,146.93,13.55576036]
[1745486639599,6.804,146.96,146.93,6.75096036]
[1745486639794,6.74430524,146.96,146.93,6.75096036]
[1745486640099,6.75096036,146.97,146.93,6.75096036]
[1745486640398,6.8025,146.99,146.96,6.8033]
[1745486640798,4.7407,147.0,146.95,6.75096036]
[1745486640999,11.5429,147.0,146.97,6.8031]
[1745486641895,9.1646,147.0,146.98,6.8028]
[1745486642200,9.1646,147.0,146.96,6.75096036]
[1745486642702,9.1646,147.0,146.97,6.803]
[1745486642900,6.8023,146.99,146.97,6.803]
[1745486643195,2.3624,147.0,146.97,6.803]
[1745486643403,9.1645,147.0,146.97,6.803]
[1745486643695,6.75096036,147.02,146.98,6.8025]
[1745486643900,7.3134,147.04,146.98,6.75096036]
[1745486644101,7.3134,147.04,146.99,6.8021]
[1745486644399,6.75096036,147.03,146.98,6.75096036]
[1745486644900,6.8013,147.02,146.98,6.75096036]
[1745486645300,14.06436036,147.04,146.99,6.75096036]
[1745486645599,6.75096036,147.03,146.99,6.75096036]
[1745486645800,6.75096036,147.02,146.97,6.75096036]
[1745486646400,6.75096036,147.02,146.98,6.75096036]
[1745486647203,13.55216036,147.02,146.99,6.8022]
[1745486649201,6.8012,147.02,146.99,6.8022]
[1745486649499,6.8012,147.02,146.99,13.55316036]
[1745486650200,6.8007,147.03,147.0,6.8017]
[1745486650401,13.55166036,147.03,147.0,6.8017]
[1745486650802,6.801,147.02,147.0,6.8017]
[1745486650995,14.06436036,147.04,147.0,6.8017]
[1745486651201,11.71066036,147.04,147.0,6.8017]
[1745486651399,6.8007,147.03,147.01,6.8013]
[1745486651600,31.1828,147.08,147.0,6.75096036]
[1745486651796,6.75096036,147.05,147.0,35.51096036]
[1745486652000,6.75096036,147.02,147.0,28.76]
[1745486652501,13.55216036,147.02,147.0,28.76]
[1745486653199,6.8014,147.01,147.0,28.76]
[1745486653501,6.8014,147.01,146.97,35.51096036]
[1745486654000,6.8014,147.01,146.98,6.8025]
[1745486654802,13.55206036,147.02,146.99,6.8022]
[1745486655106,6.75096036,147.02,146.97,35.51096036]
[1745486655302,6.8015,147.01,146.98,13.55346036]
[1745486655706,6.8015,147.01,146.98,6.75096036]
[1745486657003,13.55216036,147.02,146.99,6.8023]
[1745486657402,6.75096036,147.02,146.99,6.8023]
[1745486657704,36.2287,147.08,146.99,6.8023]
[1745486657903,6.75096036,147.03,146.99,6.8023]
[1745486658306,6.8012,147.02,146.99,6.8023]
[1745486658904,6.75096036,147.03,146.99,6.8023]
[1745486658905,6.75096036,147.04,146.99,6.75096036]
[1745486659106,6.75096036,147.03,146.99,6.75096036]
[1745486659297,6.75096036,147.03,146.98,6.75096036]
[1745486659599,13.55166036,147.03,147.0,6.8015]
[1745486660211,13.55166036,147.03,147.01,6.8014]
[1745486660403,6.8007,147.03,147.01,6.8014]
[1745486660806,6.8011,147.02,146.97,28.76]
[1745486661006,6.8011,147.02,146.98,6.75096036]
[1745486662207,6.8011,147.02,146.99,6.8021]
[1745486662902,6.8011,147.02,147.0,6.8018]
[1745486663102,6.8011,147.02,146.98,6.75096036]
[1745486663401,6.8011,147.02,146.99,6.8021]
[1745486663705,6.8017,147.01,146.97,35.51096036]
[1745486663898,6.8017,147.01,146.98,6.8024]
[1745486664103,6.8022,147.0,146.97,28.76]
[1745486664498,28.76,147.06,146.98,6.75096036]
[1745486664705,6.75096036,147.03,146.98,6.75096036]
[1745486665203,28.76,147.06,146.98,13.55346036]
[1745486665404,6.75096036,147.03,146.98,13.55346036]
[1745486665706,28.76,147.06,146.98,6.75096036]
[1745486665904,6.75096036,147.07,147.02,6.75096036]
[1745486666408,6.75096036,147.07,147.03,13.55106036]
[1745486666709,2.3666,147.1,147.01,28.76]
[1745486666908,2.3666,147.1,147.06,6.75096036]
[1745486667202,28.76,147.15,147.06,6.75096036]
[1745486667501,28.76,147.15,147.08,6.75096036]
[1745486667707,6.75096036,147.14,147.1,6.75096036]
[1745486667903,6.75096036,147.15,147.1,6.75096036]
[1745486668108,6.75096036,147.16,147.11,6.75096036]
[1745486668308,6.75096036,147.15,147.1,6.75096036]
[1745486668506,6.75096036,147.15,147.12,6.7961]
[1745486668507,13.54616036,147.15,147.12,6.7961]
[1745486668708,13.54616036,147.15,147.1,6.75096036]
[1745486669009,6.75096036,147.15,147.1,13.54796036]
[1745486669210,6.75096036,147.15,147.1,6.75096036]
[1745486670304,7.225,147.18,147.11,13.54756036]
[1745486670608,6.75096036,147.16,147.11,13.54756036]
[1745486670803,6.7954,147.14,147.11,13.54756036]
[1745486671004,6.75096036,147.14,147.1,13.54796036]
[1745486671205,6.7964,147.12,147.09,35.51096036]
[1745486671508,6.75096036,147.13,147.09,42.30836036]
[1745486671711,13.54706036,147.13,147.09,42.30836036]
[1745486672009,6.75096036,147.13,147.09,35.51096036]
[1745486672201,6.75096036,147.11,147.09,28.76]
[1745486672910,13.54796036,147.11,147.09,28.76]
[1745486673111,6.75096036,147.11,147.09,28.76]
[1745486673312,10.51431701,147.14,147.09,28.76]
[1745486673716,13.5861,147.2,147.09,39.27431701]
[1745486674013,6.9647,147.19,147.09,28.76]
[1745486674212,10.51431701,147.15,147.09,35.5575]
[1745486674608,6.7963,147.13,147.09,35.5575]
[1745486675215,6.7963,147.13,147.1,6.7972]
[1745486675615,6.7963,147.13,147.09,28.76]
[1745486675914,6.7963,147.13,147.1,6.7972]